[Event "83rd Georgian Championship 2024"]
[Site "Tbilisi"]
[Date "2024.02.05"]
[Round "7.2"]
[White "Quparadze, Giga"]
[Black "Tsomaia, Nikoloz"]
[Result "1-0"]
[ECO "C64"]
[WhiteElo "2491"]
[BlackElo "2231"]
[Annotator "TA"]
[PlyCount "53"]
[EventDate "2024.01.29"]
[EventType "tourn"]
[EventCountry "GEO"]
[SourceTitle "playchess.com"]
[Source "ChessBase"]
[SourceQuality "1"]
[TimeControl "5400+30"]

{[%evp 10,53,46,32,39,35,50,34,37,40,29,40,42,26,44,48,39,-8,-20,-15,0,0,-19,0,71,71,75,62,222,227,302,88,75,91,105,101,440,434,443,443,531,515,812,515,1107,1087]} 1. e4 {[%emt 0:00:04]} e5 {[%emt 0:00:29]} 2. Nf3 {[%emt 0:00:05]} Nc6 {[%emt 0:00:17]} 3. Bb5 {[%emt 0:00:05]} a6 {[%emt 0:00:05]} 4. Ba4 {[%emt 0:00:04]} Bc5 {[%emt 0:00:23]} 5. c3 {[%emt 0:00:22]} Nge7 {[%emt 0:00:08]} 6. O-O {[%emt 0:01:00]} Ba7 {[%emt 0:00:03]} 7. d4 {[%emt 0:00:06]} Ng6 {[%emt 0:00:03]} 8. d5 {[%emt 0:00:53]} Nce7 {[%emt 0:00:04] White is slightly better.} 9. d6 {[%emt 0:00:14]} cxd6 {[%emt 0:00:05]} 10. Qxd6 {[%emt 0:00:06]} b5 {[%emt 0:00:33]} 11. Bb3 {[%emt 0:00:05][%cal Oh2h4]} Bb8 {[%emt 0:00:13]} 12. Qd3 {[%emt 0:00:16]} d5 {[%emt 0:01:25]} 13. a4 {[%emt 0:02:09]} (13. Rd1 $14) 13... f5 $1 $11 {[%emt 0:19:15]} 14. Bxd5 {[%emt 0:00:05] [#] Hoping for exf5.} Bb7 $1 {[%emt 0:02:43][%cal Rb7d5]} 15. Ng5 $40 {[%emt 0:02:54][%mdl 128] Black needs to defend precisely.} (15. axb5 Bxd5 (15... Nxd5 16. exd5 e4 17. Qe2 $16) 16. exd5 e4 $17) 15... Nxd5 {[%emt 0:15:12]} 16. Ne6 {[%emt 0:00:08]} Qe7 {[%emt 0:25:53]} (16... fxe4 $11 {keeps the balance.} 17. Nxd8 exd3 18. Nxb7 Ba7) 17. exd5 $16 {[%emt 0:00:50] Black must now prevent Be3.} e4 {[%emt 0:01:34]} 18. Qd1 {[%emt 0:00:05] Strongly threatening Be3.} Qd6 $2 {[%emt 0:05:48]} (18... Nf8 $1 $14) 19. Qh5 $18 {[%emt 0:00:09]} (19. Nxg7+ Kf7 20. Qh5 Kxg7 21. Bh6+ Kg8 $11) 19... Qe5 {[%emt 0:10:46] [#]} 20. c4 {[%emt 0:03:53]} bxc4 $16 {[%emt 0:04:44]} 21. Bf4 {[%emt 0:01:03] White is much more active.} Qxb2 {[%emt 0:01:27]} 22. Bxb8 $1 {[%emt 0:02:28]} Rxb8 $4 {[%emt 0:02:45][%mdl 8192]} (22... Qxa1 $16 23. Nd2 Qf6) 23. Na3 $18 {[%emt 0:00:19][%cal Bb1a3,Ba3c4,Bc4e3,Be3f5][%mdl 32] White is clearly winning.} Qf6 {[%emt 0:05:36]} 24. Nxc4 {[%emt 0:00:04] And now Rab1 would win.} Ke7 {[%emt 0:02:26]} 25. Ne3 {[%emt 0:00:15]} f4 {[%emt 0:00:17]} (25... Rbd8 $142 26. Nxf5+ (26. Qxf5 Qxf5 27. Nxf5+ Kf6 $18) 26... Kf7) 26. Nf5+ {[%emt 0:00:15] Excellent horsemanship.} Kd7 {[%emt 0:00:09]} (26... Kf7 $142 27. Nd6+ (27. Nfxg7 Qe5 $18) (27. Nxf4 Rhd8 $16) 27... Ke7 28. Nxe4 Qe5) 27. Nc5+ {[%emt 0:00:13] Weighted Error Value: White=0.38/Black=0.55.  Loses game:     	---       	Black=1      Missed win:     	White=1     	---        Mistake:       	White=1     	Black=4      Inaccurate:     	White=1     	Black=1      OK:         	White=10    	Black=8      Best:        	White=4     	Black=1      Strong:       	White=1     	Black=2} 1-0

[Event "83rd Georgian Championship 2024"]
[Site "Tbilisi"]
[Date "2024.02.05"]
[Round "7.3"]
[White "Pantsulaia, Levan"]
[Black "Mchedlishvili, Mikheil"]
[Result "0-1"]
[ECO "A22"]
[WhiteElo "2561"]
[BlackElo "2569"]
[Annotator "TA"]
[PlyCount "50"]
[EventDate "2024.01.29"]
[EventType "tourn"]
[EventCountry "GEO"]
[SourceTitle "playchess.com"]
[Source "ChessBase"]
[SourceQuality "1"]
[TimeControl "5400+30"]

{[%evp 12,50,-11,-22,-18,-33,0,-21,-10,-2,0,0,0,-22,0,-24,-18,-45,-38,-120,-101,-117,-119,-100,-107,-308,-320,-316,-308,-282,-225,-347,-349,-602,-595,-872,-889,-970,-783,-747,-719]} 1. c4 {[%emt 0:00:11]} e5 {[%emt 0:00:51]} 2. Nc3 {[%emt 0:00:17]} Nf6 {[%emt 0:02:32]} 3. g3 {[%emt 0:00:55]} Bb4 {[%emt 0:01:18]} 4. Bg2 {[%emt 0:00:27]} O-O {[%emt 0:00:37]} 5. e4 {[%emt 0:05:57]} Bxc3 {[%emt 0:02:46]} 6. dxc3 {[%emt 0:07:40]} d6 {[%emt 0:01:43]} 7. Ne2 {[%emt 0:00:39]} a6 {[%emt 0:03:26]} 8. a4 {[%emt 0:02:08]} Nc6 {[%emt 0:09:59]} 9. h3 {[%emt 0:01:05]} Be6 {[%emt 0:05:36] The position is equal.} 10. b3 {[%emt 0:01:22]} Qc8 {[%emt 0:06:15]} 11. Be3 {[%emt 0:03:55]} Na5 {[%emt 0:05:49][%cal Ob7b5]} 12. Nc1 {[%emt 0:04:27]} Qd7 {[%emt 0:03:01]} 13. Ra2 {[%emt 0:04:27]} b5 {[%emt 0:01:50]} 14. axb5 {[%emt 0:05:17]} axb5 {[%emt 0:00:18]} 15. c5 {[%emt 0:03:27]} (15. f4 $15) 15... Qc6 {[%emt 0:03:42]} 16. cxd6 {[%emt 0:00:45]} cxd6 {[%emt 0:00:25][%cal Oa5b3,Bc7d6,Bd6d5][%mdl 32]} 17. Qc2 {[%emt 0:05:07] [#]} d5 $1 {[%emt 0:05:01] Black is more active.} 18. b4 $2 {[%emt 0:00:56] Now White is beyond hope.} (18. O-O $17) 18... Nc4 $19 {[%emt 0:01:00]} 19. Bc5 {[%emt 0:03:38]} Rxa2 {[%emt 0:01:52]} 20. Nxa2 {[%emt 0:00:05]} Re8 {[%emt 0:02:04]} 21. f3 {[%emt 0:02:11]} (21. O-O $142) 21... dxe4 {[%emt 0:04:50]} 22. fxe4 {[%emt 0:00:11]} (22. O-O) 22... Rd8 {[%emt 0:01:41] And now ...Rd2 would win. Black is clearly winning.} 23. O-O {[%emt 0:08:42]} Rd2 {[%emt 0:00:44]} 24. Qb1 {[%emt 0:00:03] [#]} Rxg2+ $1 {[%emt 0:01:23][%mdl 512]} 25. Kxg2 {[%emt 0:00:05]} Nxe4 {[%emt 0:00:08] Weighted Error Value: White=0.67/Black=0.26 (precise) .  Loses game:     	White=1     	---        Mistake:       	White=3     	---        Inaccurate:     	White=2     	Black=1      OK:         	White=1     	Black=4      Best:        	White=1     	Black=1      Strong:       	---       	Black=1} (25... Qxe4+ 26. Qxe4 Nxe4 27. Rd1 $11) 0-1

[Event "83rd Georgian Championship 2024"]
[Site "Tbilisi"]
[Date "2024.02.05"]
[Round "7.4"]
[White "Gagunashvili, Merab"]
[Black "Paichadze, Luka"]
[Result "1/2-1/2"]
[ECO "E08"]
[WhiteElo "2562"]
[BlackElo "2503"]
[Annotator "TA"]
[PlyCount "108"]
[EventDate "2024.01.29"]
[EventType "tourn"]
[EventCountry "GEO"]
[SourceTitle "playchess.com"]
[Source "ChessBase"]
[SourceQuality "1"]
[TimeControl "5400+30"]

{[%evp 34,108,0,0,0,0,0,0,0,0,12,0,0,0,0,0,0,0,0,0,0,-39,-37,-43,-33,-38,-23,-32,-31,-37,-15,-43,-42,-160,-160,-157,-156,-132,-120,-141,-79,-96,-80,-97,-105,-97,-52,-66,-57,-112,-110,-114,-108,-140,-129,-123,-137,-133,-111,-130,-114,-263,-260,-551,-551,-514,0,0,0,0,0,0,0,0,0,0,0]} 1. d4 {[%emt 0:00:07]} Nf6 {[%emt 0:00:06]} 2. c4 {[%emt 0:00:05]} e6 {[%emt 0:00:03]} 3. Nf3 {[%emt 0:00:05]} Bb4+ {[%emt 0:00:18]} 4. Bd2 {[%emt 0:00:10]} a5 {[%emt 0:00:29]} 5. g3 {[%emt 0:00:27]} O-O {[%emt 0:00:55]} 6. Bg2 {[%emt 0:00:22]} d5 {[%emt 0:00:17]} 7. Qc2 {[%emt 0:07:29]} Be7 {[%emt 0:02:34]} 8. O-O {[%emt 0:00:22]} c6 {[%emt 0:00:17]} 9. Bf4 {[%emt 0:01:24]} Nbd7 {[%emt 0:01:32]} 10. Rd1 {[%emt 0:05:45] E08: Closed Catalan: Main Line: 7 Qc2.} a4 {[%emt 0:02:29]} 11. Ne5 {[%emt 0:03:30]} Qa5 {[%emt 0:01:35]} 12. a3 $146 {[%emt 0:01:44]} ({Predecessor:} 12. Nxd7 Bxd7 13. c5 b6 14. Bc7 Bd8 15. Bd6 Re8 16. Nd2 bxc5 17. Bxc5 e5 18. e4 {½-½ Can,E (2570)-So,W (2769) FIDE World Cup 2023 (2.2)}) 12... Nxe5 {[%emt 0:03:21]} 13. Bxe5 {[%emt 0:05:19]} Bd7 {[%emt 0:04:01]} 14. Nd2 {[%emt 0:04:10]} Ng4 {[%emt 0:04:14]} 15. Nf3 {[%emt 0:01:07]} Nxe5 {[%emt 0:04:03]} 16. Nxe5 {[%emt 0:01:23]} Rfd8 {[%emt 0:02:16]} 17. e4 {[%emt 1:05:31]} dxc4 {[%emt 0:04:26]} 18. Nxc4 {[%emt 0:00:00]} Qa6 {[%emt 0:04:17]} 19. Rac1 {[%emt 0:00:00]} Rac8 {[%emt 1:02:47]} 20. e5 {[%emt 0:00:00]} Be8 {[%emt 0:00:00]} 21. Ne3 {[%emt 0:00:00]} Ra8 {[%emt 0:00:00]} 22. Be4 {[%emt 0:00:00]} h6 {[%emt 0:00:00]} 23. h4 {[%emt 0:00:00]} Rd7 {[%emt 0:00:00]} 24. Rd3 {[%emt 0:00:00]} Rad8 {[%emt 0:00:00]} 25. Rcd1 {[%emt 0:00:00]} Qa7 {[%emt 0:00:00]} 26. Qc3 {[%emt 0:00:00]} f6 {[%emt 0:00:00]} 27. exf6 {[%emt 0:00:00]} Bxf6 {[%emt 0:00:00]} 28. Nc2 {[%emt 0:00:00]} Qb6 {[%emt 0:00:00]} 29. R1d2 {[%emt 0:00:00]} Bf7 {[%emt 0:00:00]} 30. Kg2 {[%emt 0:00:00]} Kh8 {[%emt 0:00:00]} 31. Kg1 {[%emt 0:00:00]} Qb5 {[%emt 0:00:00]} 32. Ne1 {[%emt 0:03:17]} Bh5 {[%emt 0:00:00]} 33. f4 {[%emt 0:02:42]} (33. Kg2 $15) 33... c5 $1 $17 {[%emt 0:00:08]} 34. Nc2 {[%emt 0:00:15]} cxd4 {[%emt 0:02:19]} 35. Qb4 {[%emt 0:00:05]} Qxb4 {[%emt 0:00:13]} 36. Nxb4 {[%emt 0:00:23]} Bg4 {[%emt 0:00:17]} ({Black should try} 36... e5 {Threatens to win with ...exf4.} 37. fxe5 Bxe5) 37. Rf2 {[%emt 0:00:39]} Kg8 {[%emt 0:01:46]} 38. Kg2 {[%emt 0:00:07]} Kf7 {[%emt 0:00:13]} 39. Rdd2 {[%emt 0:00:25]} Ke7 {[%emt 0:01:26]} 40. Nd3 {[%emt 0:00:07]} Rc8 {[%emt 0:00:03]} 41. Ne5 {[%emt 0:01:39]} ({White should play} 41. Rf1 $15) 41... Bxe5 $17 {[%emt 0:00:16]} 42. fxe5 {[%emt 0:00:01]} Rc5 {[%emt 0:01:26]} 43. Bg6 {[%emt 0:00:26] [#]} Bf5 $1 {[%emt 0:00:33]} (43... Rxe5 $2 {too greedy.} 44. Rf7+ Kd8 45. Rxd7+ Kxd7 46. Rxd4+ Kc6 47. Rxg4 $18) 44. Bxf5 {[%emt 0:00:16]} exf5 {[%emt 0:00:02]} 45. Rxf5 {[%emt 0:00:18]} Ke6 {[%emt 0:00:41]} 46. Rf4 {[%emt 0:00:15]} Kxe5 {[%emt 0:02:41]} (46... Rxe5 47. Rdxd4 b5 48. Rxd7 Kxd7 49. Kf3 $19) 47. Re2+ {[%emt 0:00:04]} (47. Kf3 $17) 47... Kd5 $19 {[%emt 0:00:08]} 48. Rxd4+ $2 {[%emt 0:00:46]} (48. Rf5+ {is a better defense.} Kc6 49. Rf4) 48... Kxd4 $19 {[%emt 0:00:11]} 49. Rd2+ {[%emt 0:00:01] [#]} Ke5 $2 {[%emt 0:01:32]} (49... Kc4 $1 $19 50. Rxd7 b5 51. Rxg7 Kb3) 50. Rxd7 $11 {[%emt 0:00:02]} Rc2+ {[%emt 0:00:04]} 51. Kh3 {[%emt 0:02:38]} Rxb2 {[%emt 0:00:01]} 52. Rxg7 {[%emt 0:00:04]} Rb3 {[%emt 0:00:08]} 53. Rh7 {[%emt 0:00:59]} Rxa3 {[%emt 0:00:30]} 54. Rxb7 {[%emt 0:00:08]} Kf6 {[%emt 0:00:25]} 1/2-1/2

[Event "83rd Georgian Championship 2024"]
[Site "Tbilisi"]
[Date "2024.02.05"]
[Round "7.5"]
[White "kiladze, Luka"]
[Black "Jobava, Baadur"]
[Result "0-1"]
[ECO "D02"]
[WhiteElo "2179"]
[BlackElo "2591"]
[Annotator "TA"]
[PlyCount "100"]
[EventDate "2024.01.29"]
[EventType "tourn"]
[EventCountry "GEO"]
[SourceTitle "playchess.com"]
[Source "ChessBase"]
[SourceQuality "1"]
[TimeControl "5400+30"]

{[%evp 9,100,12,18,19,29,-9,10,-8,-4,-8,7,0,5,-9,0,-10,-8,-14,-7,-19,-15,-11,0,-12,-6,-8,-8,-23,-13,-41,-33,-43,0,-2,0,0,0,0,0,-10,0,0,-3,-21,-10,-22,-19,-19,-17,-54,-38,-70,-70,-80,-12,-18,-10,-14,-16,-153,-167,-173,-172,-178,-184,-180,-171,-179,-182,-181,-180,-195,-185,-193,-202,-221,-214,-214,-214,-251,-214,-299,-300,-300,-293,-293,-267,-291,-277,-336,-333,-312,-313]} 1. d4 {[%emt 0:00:08]} d5 {[%emt 0:03:38]} 2. Nf3 {[%emt 0:00:31]} Nf6 {[%emt 0:00:09]} 3. Bf4 {[%emt 0:00:13]} Bf5 {[%emt 0:00:18]} 4. e3 {[%emt 0:01:10]} e6 {[%emt 0:00:06]} 5. Bd3 {[%emt 0:00:53]} Nbd7 {[%emt 0:01:49]} 6. O-O {[%emt 0:01:21]} c6 {[%emt 0:00:25]} 7. Ne5 {[%emt 0:04:50]} Be7 {[%emt 0:02:19]} 8. Nd2 {[%emt 0:02:46] The position is equal.} O-O {[%emt 0:00:33]} 9. Qe2 {[%emt 0:02:01]} a5 {[%emt 0:01:41]} 10. Rfd1 {[%emt 0:02:50]} a4 {[%emt 0:00:34]} 11. a3 {[%emt 0:00:38]} Re8 {[%emt 0:01:32]} 12. e4 {[%emt 0:03:00]} dxe4 {[%emt 0:00:06]} 13. Nxe4 {[%emt 0:00:05]} Nxe4 {[%emt 0:00:18]} 14. Bxe4 {[%emt 0:00:09][%cal Od4d5]} Bxe4 {[%emt 0:00:07]} 15. Qxe4 {[%emt 0:00:26]} Nf6 {[%emt 0:00:27]} 16. Qf3 {[%emt 0:02:09]} Qd5 {[%emt 0:01:40]} 17. Qe2 {[%emt 0:01:37]} Qe4 {[%emt 0:02:25]} 18. Be3 {[%emt 0:05:50]} Nd5 {[%emt 0:01:13][%cal Oc6c5]} 19. c4 {[%emt 0:01:40]} Nxe3 {[%emt 0:00:16]} 20. Qxe3 {[%emt 0:01:02]} Qf5 {[%emt 0:09:01]} 21. Rd3 {[%emt 0:04:03]} Red8 {[%emt 0:03:42][%cal Oc6c5]} 22. Rad1 {[%emt 0:02:11]} h5 {[%emt 0:01:59][%cal Oc6c5]} 23. h3 {[%emt 0:05:14]} Bg5 {[%emt 0:10:40]} 24. g4 {[%emt 0:10:09]} hxg4 {[%emt 0:02:22]} (24... Bxe3 {simplifies} 25. gxf5 Bf4 26. fxe6 fxe6 27. Ng6 Bg5) 25. hxg4 {[%emt 0:00:09]} Qf6 {[%emt 0:02:29]} 26. Qe4 {[%emt 0:01:12] Rf3 would now be deadly.} Qf4 {[%emt 0:04:22]} 27. Qxf4 {[%emt 0:12:40]} Bxf4 {[%emt 0:00:05]} 28. Nf3 {[%emt 0:01:35]} Ra6 {[%emt 0:10:57]} 29. c5 {[%emt 0:06:06] Dodges Rb6} Ra5 {[%emt 0:00:53]} 30. b4 {[%emt 0:01:34]} axb3 {[%emt 0:00:05]} 31. Rxb3 {[%emt 0:00:03][%cal Od1b1] [#]} e5 $1 {[%emt 0:06:29]} 32. Rxb7 {[%emt 0:03:20]} (32. Kg2 Ra7) 32... Rxa3 {[%emt 0:01:05]} 33. Kg2 {[%emt 0:00:56]} e4 {[%emt 0:00:10]} 34. Nh4 {[%emt 0:01:58] White is now going downhill.} (34. Ng1 $1 $11) 34... g6 $17 {[%emt 0:01:01]} 35. Kg1 {[%emt 0:05:10]} Be5 $36 {[%emt 0:18:37][%mdl 2048] Black is in control.} 36. Rb4 {[%emt 0:03:50]} Rd3 {[%emt 0:04:39]} 37. Re1 {[%emt 0:02:18]} (37. Rxd3 exd3 38. dxe5 d2 $19) 37... Bxd4 {[%emt 0:00:06]} 38. Rxe4 {[%emt 0:00:17]} Rd2 {[%emt 0:00:17]} ({But not} 38... Bxc5 39. Rbc4 R8d5 40. Kf1 $17) 39. Nf3 {[%emt 0:01:48]} Bxf2+ {[%emt 0:00:05]} (39... Rxf2 $2 {perishes.} 40. Rbxd4 Rxd4 41. Nxd4 $18) 40. Kf1 {[%emt 0:00:45]} Bxc5 {[%emt 0:00:31]} 41. Nxd2 {[%emt 0:00:08]} Bxb4 $19 {[%emt 0:00:04][%mdl 4096] Endgame. KRB-KRN} ({Worse is} 41... Rxd2 42. Rbc4 Rd5 43. Re8+ Kg7 44. Rc8 $11) 42. Nc4 {[%emt 0:00:42]} Kg7 {[%emt 0:00:30]} 43. Ke2 {[%emt 0:00:39]} Bc3 {[%emt 0:01:24]} 44. Re7 {[%emt 0:00:50]} Bf6 {[%emt 0:02:30]} 45. Rc7 {[%emt 0:00:30]} Rd4 {[%emt 0:00:06][%csl LRc4,LRg4] Black has a decisive advantage.} 46. Rxc6 {[%emt 0:01:20]} Rxg4 {[%emt 0:00:07]} 47. Ne3 {[%emt 0:00:07]} Rd4 {[%emt 0:00:17]} 48. Kf3 {[%emt 0:00:31]} Be5 {[%emt 0:00:31]} 49. Rc8 {[%emt 0:01:19]} Bf4 {[%emt 0:02:07]} 50. Ng2 {[%emt 0:01:14]} Bd2 {[%emt 0:00:11] Weighted Error Value: White=0.17 (very precise) /Black=0.08 (flawless) .  Mistake:       	White=1     	Black=1      Inaccurate:     	White=5     	Black=1      OK:         	White=11    	Black=21     Best:        	---       	Black=3} 0-1

[Event "83rd Georgian Championship 2024"]
[Site "Tbilisi"]
[Date "2024.02.06"]
[Round "8.1"]
[White "Kacharava, Nikolozi"]
[Black "Jobava, Baadur"]
[Result "1/2-1/2"]
[ECO "C43"]
[WhiteElo "2523"]
[BlackElo "2591"]
[Annotator "TA"]
[PlyCount "70"]
[EventDate "2024.01.29"]
[EventType "tourn"]
[EventCountry "GEO"]
[SourceTitle "playchess.com"]
[Source "ChessBase"]
[SourceQuality "1"]
[TimeControl "5400+30"]

{[%evp 18,70,38,32,43,40,93,60,59,52,43,54,48,48,54,33,36,33,33,31,39,33,34,10,20,16,17,16,21,13,10,12,27,23,22,20,20,13,16,11,17,14,18,13,17,0,10,0,0,0,19,0,0,0,2]} 1. e4 {[%emt 0:00:07]} e5 {[%emt 0:01:02]} 2. Nf3 {[%emt 0:00:45]} Nf6 {[%emt 0:00:08]} 3. d4 {[%emt 0:00:31]} exd4 {[%emt 0:00:19]} 4. e5 {[%emt 0:00:42]} Ne4 {[%emt 0:00:07]} 5. Qxd4 {[%emt 0:00:35]} d5 {[%emt 0:00:07]} 6. exd6 {[%emt 0:00:32]} Nxd6 {[%emt 0:00:06]} 7. Nc3 {[%emt 0:01:00]} Nc6 {[%emt 0:00:06]} 8. Qf4 {[%emt 0:00:35]} Nf5 {[%emt 0:00:06]} 9. Bb5 {[%emt 0:01:45]} Bd6 {[%emt 0:05:04]} 10. Qe4+ {[%emt 0:00:54]} Nfe7 {[%emt 0:00:08]} 11. Bg5 {[%emt 0:10:20]} O-O {[%emt 0:00:52]} (11... Bf5 $14 12. Qxf5 Nxf5 13. Bxd8 Rxd8) 12. O-O-O {[%emt 0:04:32] Strongly threatening Bxc6. White is much more active. The black rooks are passive.} Bf5 {[%emt 0:07:39] White is slightly better.} 13. Qxf5 {[%emt 0:15:40]} Nxf5 {[%emt 0:00:07]} 14. Bxd8 {[%emt 0:00:05]} Raxd8 {[%emt 0:10:42]} 15. Bxc6 {[%emt 0:01:56]} bxc6 {[%emt 0:00:07]} 16. Ne4 {[%emt 0:03:52]} Rfe8 {[%emt 0:00:17]} 17. Rhe1 {[%emt 0:01:49]} Bf4+ {[%emt 0:00:59]} 18. Kb1 {[%emt 0:01:00]} Rxd1+ {[%emt 0:00:22]} 19. Rxd1 {[%emt 0:00:01]} h5 {[%emt 0:00:08]} 20. Re1 {[%emt 0:06:05][%cal Oe4f6] [#] aiming for Nf6+!} Kf8 {[%emt 0:10:59][%cal Of4h2]} 21. g3 {[%emt 0:06:48]} Be3 {[%emt 0:01:05]} 22. Neg5 {[%emt 0:00:22]} (22. Rxe3 $2 {loses.} Nxe3 23. Nc5 Ng4 24. Nd7+ Kg8 $19) 22... Bxg5 {[%emt 0:04:06]} 23. Rxe8+ {[%emt 0:00:08]} Kxe8 {[%emt 0:00:03]} 24. Nxg5 $11 {[%emt 0:00:07][%mdl 4096] Endgame. KN-KN} Ke7 {[%emt 0:01:12]} 25. Kc1 {[%emt 0:02:28]} Nd6 {[%emt 0:03:38]} 26. Kd2 {[%emt 0:04:01] The position is equal.} Kf6 {[%emt 0:00:05]} 27. Nf3 {[%emt 0:01:29]} c5 {[%emt 0:00:04] Prevents Nd4.} 28. Kd3 {[%emt 0:02:32]} Kf5 {[%emt 0:00:43]} 29. h3 {[%emt 0:00:59]} g5 {[%emt 0:01:47][%cal Bg7g5,Bg5g4][%mdl 32]} 30. Nd2 {[%emt 0:01:21]} g4 {[%emt 0:01:48]} 31. h4 {[%emt 0:05:18]} Ke5 {[%emt 0:00:20]} 32. b3 {[%emt 0:01:21]} Kd5 {[%emt 0:02:10]} 33. Ke3 {[%emt 0:03:20]} Ke5 {[%emt 0:00:34]} 34. Kd3 {[%emt 0:00:30]} Kd5 {[%emt 0:00:04]} 35. Ke3 {[%emt 0:01:35]} Ke5 {[%emt 0:50:56] Weighted Error Value: White=0.07 (flawless) /Black=0.04 (flawless) .  Mistake:       	---       	Black=1      Inaccurate:     	White=1     	---        OK:         	White=11    	Black=13     Best:        	White=1     	Black=3} 1/2-1/2

[Event "83rd Georgian Championship 2024"]
[Site "Tbilisi"]
[Date "2024.02.06"]
[Round "8.2"]
[White "Paichadze, Luka"]
[Black "kiladze, Luka"]
[Result "1-0"]
[ECO "B31"]
[WhiteElo "2503"]
[BlackElo "2179"]
[Annotator "TA"]
[PlyCount "73"]
[EventDate "2024.01.29"]
[EventType "tourn"]
[EventCountry "GEO"]
[SourceTitle "playchess.com"]
[Source "ChessBase"]
[SourceQuality "1"]
[TimeControl "5400+30"]

{[%evp 16,73,24,15,34,25,16,20,46,42,83,81,141,131,141,143,146,142,152,152,152,153,151,142,193,169,243,204,238,251,249,258,281,287,352,334,350,334,313,337,333,315,362,343,491,492,541,471,847,656,1640,1949,2735,2527,2644,2416,29974,29978,29977,29976]} 1. e4 {[%emt 0:00:04]} c5 {[%emt 0:00:04]} 2. Nf3 {[%emt 0:00:05]} Nc6 {[%emt 0:00:05]} 3. Bb5 {[%emt 0:00:50]} g6 {[%emt 0:00:06]} 4. Bxc6 {[%emt 0:01:08]} dxc6 {[%emt 0:00:07]} 5. d3 {[%emt 0:00:29]} Bg7 {[%emt 0:00:15]} 6. h3 {[%emt 0:00:14]} e5 {[%emt 0:00:05]} 7. Be3 {[%emt 0:00:40]} Qe7 {[%emt 0:00:08]} 8. Nc3 {[%emt 0:06:18][%cal Bb1c3,Bc3a4,Ba4b6][%mdl 32]} Nf6 {[%emt 0:01:05]} 9. Qd2 {[%emt 0:00:03]} h6 {[%emt 0:01:26]} 10. a3 {[%emt 0:00:34][%cal Ob2b4]} Nd7 {[%emt 0:01:48]} 11. O-O {[%emt 0:01:18]} a5 {[%emt 0:12:08] The position is equal.} 12. Nh2 {[%emt 0:03:54]} Nf8 {[%emt 0:05:36]} 13. Na4 {[%emt 0:04:01][%cal Oa4b6] Hoping for Nb6!} Ne6 {[%emt 0:03:03]} ({Black should try} 13... Nd7) 14. Nb6 $16 {[%emt 0:02:28]} Rb8 {[%emt 0:04:26]} 15. Qxa5 {[%emt 0:01:30]} O-O {[%emt 0:04:19]} 16. Qa7 $36 {[%emt 0:07:17][%mdl 2048] White has strong initiative. White has more active pieces. The black rooks are passive.} Bd7 {[%emt 0:06:15]} 17. Nxd7 {[%emt 0:02:11]} Qxd7 {[%emt 0:00:09]} 18. Bxc5 {[%emt 0:00:11]} Rfc8 {[%emt 0:01:15]} 19. Qb6 {[%emt 0:02:49]} Kh7 {[%emt 0:04:31]} (19... Ra8 $16 20. Rfd1 Ra6) 20. a4 $18 {[%emt 0:03:43]} f5 {[%emt 0:01:23]} (20... Ra8 $142 21. a5 Ra6) 21. a5 {[%emt 0:01:54]} f4 {[%emt 0:07:55]} 22. Rfd1 {[%emt 0:04:29]} g5 {[%emt 0:01:34]} 23. c3 {[%emt 0:04:32]} h5 {[%emt 0:02:46][%cal Bh6h5,Bh5g4][%mdl 32]} 24. d4 {[%emt 0:08:30]} Rd8 {[%emt 0:04:02]} 25. d5 {[%emt 0:04:19]} Nxc5 {[%emt 0:00:16]} 26. Qxc5 {[%emt 0:00:04]} g4 {[%emt 0:01:52]} 27. hxg4 {[%emt 0:05:40]} hxg4 {[%emt 0:00:14]} 28. b4 {[%emt 0:04:23]} Rbc8 {[%emt 0:04:11]} 29. d6 {[%emt 0:08:22]} f3 {[%emt 0:02:50]} (29... Ra8 $142 30. Qb6 Kg6) 30. a6 {[%emt 0:02:15]} (30. gxf3 gxf3 31. Rd3 Rf8 $18) 30... b5 {[%emt 0:00:47]} 31. Qb6 {[%emt 0:02:26]} Qf7 {[%emt 0:05:31]} (31... Rb8 $142 32. Qc7 g3 33. Nxf3 Kg6 34. Nh4+ (34. fxg3 Ra8 $18) 34... Kf7 35. fxg3 Ra8) 32. a7 {[%emt 0:06:02]} Qh5 {[%emt 0:05:18]} 33. d7 {[%emt 0:01:37]} Ra8 {[%emt 0:01:15] [#]} 34. Qxd8 $3 {[%emt 0:04:06][%mdl 512]} Rxd8 {[%emt 0:00:13]} 35. a8=Q {[%emt 0:00:04]} (35. a8=B $2 {loses.} Kg6 36. Rd6+ (36. Bxc6 $2 {too greedy.} Rh8 $19) 36... Bf6 $19) 35... Rxa8 {[%emt 0:00:13]} 36. Rxa8 {[%emt 0:00:03]} Bf6 {[%emt 0:02:19]} 37. d8=Q {[%emt 0:00:13] White took control after the opening.   Weighted Error Value: White=0.22 (precise) /Black=0.59.  Mistake:       	---       	Black=5      Inaccurate:     	---       	Black=3      OK:         	White=15    	Black=4      Best:        	White=2     	---} 1-0